bitfinex/quotes_BTCUSD_20240703
["timestamp","ask_amount","ask_price","bid_price","bid_amount"]
[1720017920865,0.22253395,60387.0,60386.0,0.0097317]
[1720017921230,0.31763395,60387.0,60386.0,0.1696317]
[1720017922180,0.23327601,60387.0,60386.0,0.1696317]
[1720017922417,0.23315785,60387.0,60386.0,0.1696317]
[1720017923078,0.23315785,60387.0,60386.0,0.1706317]
[1720017923275,0.23415785,60387.0,60386.0,0.1706317]
[1720017923710,0.23415785,60387.0,60386.0,0.1705317]
[1720017924192,0.23415785,60387.0,60386.0,0.0106317]
[1720017925340,0.23415785,60387.0,60386.0,0.0096317]
[1720017925550,0.23415785,60387.0,60384.0,0.0096317]
[1720017925758,0.0951,60385.0,60382.0,0.08978752]
[1720017925959,0.0951,60385.0,60384.0,0.0096317]
[1720017926449,0.0951,60385.0,60382.0,0.08978752]
[1720017926450,0.13284518,60385.0,60382.0,0.08978752]
[1720017926572,0.13774518,60384.0,60382.0,0.08978752]
[1720017926768,0.03774518,60383.0,60382.0,0.08978752]
[1720017927010,0.13774518,60384.0,60382.0,0.08978752]
[1720017927252,0.13774518,60384.0,60378.0,0.158224]
[1720017927253,0.03774518,60383.0,60378.0,0.001124]
[1720017927598,0.0951,60379.0,60378.0,0.0107557]
[1720017927815,0.13284518,60379.0,60378.0,0.0107557]
[1720017927986,0.23284518,60379.0,60378.0,0.0107557]
[1720017928889,0.1952,60379.0,60378.0,0.0107557]
[1720017929046,0.1331733,60379.0,60378.0,0.0107557]
[1720017929249,0.2331733,60379.0,60378.0,0.0107557]
[1720017930852,0.02541378,60385.0,60378.0,0.0117557]
[1720017931069,1.22162229,60384.0,60380.0,0.0096317]
[1720017931259,0.0951,60381.0,60380.0,0.0096317]
[1720017931464,0.0951,60381.0,60378.0,0.0117557]
[1720017931854,0.0951,60379.0,60378.0,0.0117557]
[1720017932022,0.0951,60379.0,60378.0,0.0107557]
[1720017932272,0.0991,60379.0,60378.0,0.0107557]
[1720017933252,0.1001,60379.0,60378.0,0.0107557]
[1720017933453,0.2001,60379.0,60378.0,0.0107557]
[1720017934639,0.1961,60379.0,60378.0,0.0107557]
[1720017934813,0.0961,60379.0,60378.0,0.0107557]
[1720017935014,0.0961,60379.0,60378.0,0.0117557]
[1720017935168,0.0961,60379.0,60378.0,0.0107557]
[1720017939037,0.12416589,60379.0,60378.0,0.0107557]
[1720017939191,0.22416589,60379.0,60378.0,0.0107557]
[1720017939390,0.1961,60379.0,60378.0,0.0107557]
[1720017939593,0.22416969,60379.0,60378.0,0.0107557]
[1720017939856,0.22416969,60379.0,60378.0,0.01046965]
[1720017940094,0.26263994,60379.0,60378.0,0.01046965]
[1720017940270,0.00349265,60379.0,60378.0,0.01046965]
[1720017940480,0.03,60386.0,60378.0,0.01046965]
[1720017940607,0.0951,60379.0,60378.0,0.01046965]
[1720017940812,0.07580672,60385.0,60378.0,0.01046965]
[1720017941018,0.0951,60379.0,60378.0,0.01046965]
[1720017942956,0.0951,60379.0,60378.0,0.01056965]
[1720017943555,0.0951,60379.0,60378.0,0.01156965]
[1720017944181,0.0951,60379.0,60378.0,0.01056965]
[1720017944400,0.0951,60379.0,60378.0,0.01066965]
[1720017948218,0.0951,60379.0,60378.0,0.17636965]
[1720017948433,0.12038292,60379.0,60378.0,0.17636965]
[1720017948762,0.22038292,60379.0,60378.0,0.17636965]
[1720017948974,0.1951,60379.0,60378.0,0.17636965]
[1720017949187,0.22038272,60379.0,60378.0,0.17636965]
[1720017949396,0.1951,60379.0,60378.0,0.17636965]
[1720017949587,0.22072396,60379.0,60378.0,0.17636965]
[1720017950629,0.25811282,60379.0,60378.0,0.17636965]
[1720017952264,0.25819498,60379.0,60378.0,0.17636965]
[1720017953240,0.16309498,60379.0,60378.0,0.17636965]
[1720017953409,0.12080612,60379.0,60378.0,0.17636965]
[1720017953615,0.22080612,60379.0,60378.0,0.17636965]
[1720017953846,0.22080612,60379.0,60378.0,0.01066965]
[1720017955224,0.12570612,60379.0,60378.0,0.01066965]
[1720017955426,0.12077402,60379.0,60378.0,0.17376965]
[1720017955799,0.22077402,60379.0,60378.0,0.17376965]
[1720017957147,0.22077402,60379.0,60378.0,0.33406845]
[1720017957148,0.12567402,60379.0,60378.0,0.33406845]
[1720017957359,0.12077402,60379.0,60378.0,0.39406845]
[1720017957593,0.22077402,60379.0,60378.0,0.39406845]
[1720017958663,0.1951,60379.0,60378.0,0.39406845]
[1720017958785,0.11555785,60379.0,60378.0,0.39406845]
[1720017959163,0.1951,60379.0,60378.0,0.39406845]
[1720017959352,0.1951,60379.0,60378.0,0.40006845]
[1720017959928,0.0951,60379.0,60378.0,0.40006845]
[1720017960550,0.0951,60379.0,60378.0,0.40506845]
[1720017962755,0.00083,60385.0,60382.0,0.2375317]
[1720017962951,0.00083,60385.0,60384.0,0.14978752]
[1720017963179,0.09593,60385.0,60384.0,0.47798632]
[1720017963409,0.00083,60385.0,60384.0,0.47798632]
[1720017963960,0.00083,60385.0,60384.0,0.77798632]
[1720017965029,0.00083,60385.0,60384.0,0.47798632]
[1720017965668,0.0003,60387.0,60386.0,0.6696317]
[1720017965883,0.0003,60387.0,60386.0,1.0226305]
[1720017966165,0.0003,60387.0,60386.0,1.5194335]
[1720017966369,0.0003,60387.0,60386.0,1.8145335]
[1720017966521,0.0003,60387.0,60386.0,1.3882315]
[1720017968066,0.0951,60408.0,60407.0,0.2459317]
[1720017968243,0.0951,60408.0,60407.0,0.4062305]
[1720017969455,0.04928867,60424.0,60407.0,0.4062305]
[1720017969456,0.1,60423.0,60422.0,0.0096317]
[1720017969664,0.21098603,60423.0,60422.0,0.0096317]
[1720017969924,0.35328603,60423.0,60422.0,0.0096317]
[1720017970164,0.3374,60423.0,60422.0,0.0095317]
[1720017971304,0.3374,60423.0,60422.0,0.0094317]
[1720017971505,0.3374,60423.0,60422.0,0.0093317]
[1720017972329,0.3374,60423.0,60422.0,0.0103317]
[1720017972997,0.3374,60423.0,60422.0,0.0093317]
[1720017973753,0.3374,60423.0,60422.0,0.0103317]
[1720017974235,0.3374,60423.0,60419.0,0.1761317]
[1720017974454,0.3374,60423.0,60421.0,0.0092317]
[1720017974623,0.3374,60423.0,60416.0,0.0785]
[1720017974624,0.1,60423.0,60422.0,0.0092317]
[1720017974765,0.3384,60423.0,60422.0,0.0092317]
[1720017981054,0.1,60420.0,60419.0,0.00591378]
[1720017983634,0.1,60420.0,60419.0,0.00581378]
[1720017983812,0.1,60420.0,60419.0,0.00681378]
[1720017984195,0.1,60420.0,60419.0,0.00671378]
[1720017985315,0.1,60420.0,60419.0,0.0009]
[1720017985511,0.1,60420.0,60419.0,0.0029]
[1720017986096,0.1,60420.0,60419.0,0.00871378]
[1720017987497,0.1001,60420.0,60419.0,0.00871378]
[1720017987925,0.1001,60420.0,60419.0,0.00881378]
[1720017988318,0.1002,60420.0,60419.0,0.00881378]
[1720017989841,0.1952,60420.0,60419.0,0.00881378]
[1720017991051,0.0952,60420.0,60419.0,0.00881378]
[1720017991251,0.0953,60420.0,60419.0,0.00881378]
[1720017992137,0.0953,60420.0,60407.0,0.00611378]
[1720017992138,0.0024,60419.0,60407.0,0.00611378]
[1720017992347,0.03,60416.0,60407.0,0.00611378]
[1720017992523,0.0949,60408.0,60407.0,0.00611378]
[1720017992866,0.0949,60408.0,60407.0,0.00601378]
[1720017993271,0.0948,60408.0,60407.0,0.00601378]
[1720017993888,0.12093924,60408.0,60407.0,0.00601378]
[1720017994088,0.22094415,60408.0,60407.0,0.00601378]
[1720017995077,0.22094415,60408.0,60407.0,0.01601378]
[1720017995237,0.22324415,60408.0,60407.0,0.01601378]
[1720017995437,0.22324415,60408.0,60407.0,0.02501378]
[1720017995809,0.22340825,60408.0,60407.0,0.02501378]
[1720017996797,0.12860825,60408.0,60407.0,0.02501378]
[1720017997016,0.22360825,60408.0,60407.0,0.02501378]
[1720017997228,0.22355646,60408.0,60407.0,0.02501378]
[1720017997424,0.22355646,60408.0,60407.0,0.0192]
[1720017997642,0.22345646,60408.0,60407.0,0.02501378]
[1720017999425,0.47151746,60408.0,60407.0,0.018655]
[1720017999632,0.47151746,60408.0,60407.0,0.018546]
[1720017999633,1.31378346,60408.0,60407.0,0.018546]
[1720017999839,1.38008346,60408.0,60407.0,0.018546]
[1720018000043,1.22706046,60408.0,60407.0,0.018546]
[1720018000656,1.06314246,60408.0,60407.0,0.018546]
[1720018000861,1.02098688,60408.0,60407.0,0.009]
[1720018001029,0.44717988,60408.0,60407.0,0.01481378]
[1720018001206,0.45017988,60408.0,60407.0,0.01481378]
[1720018001387,0.22575488,60408.0,60407.0,0.01481378]
[1720018001588,0.44590888,60408.0,60407.0,0.01481378]
[1720018002119,0.44590888,60408.0,60407.0,0.00581378]
[1720018002689,0.44590888,60408.0,60405.0,0.00581378]
[1720018002889,0.095,60406.0,60405.0,0.00581378]
[1720018003115,0.12055488,60406.0,60400.0,0.00581378]
[1720018003294,0.1,60407.0,60402.0,0.00581378]
[1720018003295,0.12555488,60405.0,60402.0,0.00581378]
[1720018003547,0.095,60403.0,60401.0,0.00581378]
[1720018003756,0.095,60402.0,60401.0,0.00581378]
[1720018003941,0.0949,60402.0,60401.0,0.00581378]
[1720018004141,0.0949,60402.0,60400.0,0.00581378]
[1720018004334,0.12030201,60401.0,60400.0,0.00581378]
[1720018004541,0.195,60401.0,60400.0,0.00581378]
[1720018005199,0.22037716,60401.0,60400.0,0.00581378]
[1720018005982,0.22037716,60401.0,60400.0,0.01081378]
[1720018006164,0.22037716,60401.0,60400.0,0.01481378]
[1720018006566,0.195,60401.0,60400.0,0.01481378]
[1720018006767,0.095,60401.0,60400.0,0.01481378]
[1720018008012,0.095,60401.0,60400.0,0.01081378]
[1720018008214,0.095,60401.0,60400.0,0.00581378]
[1720018008370,0.095,60401.0,60400.0,0.00881378]
[1720018008710,0.095,60401.0,60400.0,0.01181378]
[1720018010301,0.14132777,60401.0,60400.0,0.01181378]
[1720018010548,0.24122777,60401.0,60400.0,0.01181378]
[1720018010856,0.24112777,60401.0,60400.0,0.01181378]
[1720018012829,0.14632777,60401.0,60400.0,0.24401378]
[1720018013040,0.0002,60408.0,60407.0,0.17511378]
[1720018014457,0.22223161,60408.0,60407.0,0.20511378]
[1720018015026,0.26872843,60408.0,60407.0,0.20511378]
[1720018015228,0.22223161,60408.0,60407.0,0.39541258]
[1720018015434,0.1954,60408.0,60407.0,0.39541258]
[1720018015671,0.0954,60408.0,60407.0,0.39541258]
[1720018016477,0.11701084,60408.0,60407.0,0.39541258]
[1720018016682,0.21714181,60408.0,60407.0,0.39541258]
[1720018017021,0.22114181,60408.0,60407.0,0.39541258]
[1720018017339,0.1994,60408.0,60407.0,0.39551258]
[1720018017677,0.21707936,60408.0,60407.0,0.39561258]
[1720018017883,0.21707936,60408.0,60407.0,0.39861258]
[1720018018376,0.21707936,60408.0,60407.0,0.33861258]
[1720018019191,0.21707936,60408.0,60407.0,0.36861258]
[1720018019392,0.21707936,60408.0,60407.0,0.39861258]
[1720018019615,0.21707936,60408.0,60407.0,0.40161258]
[1720018019957,0.21702978,60408.0,60407.0,0.40161258]
[1720018020665,0.21712978,60408.0,60407.0,0.37161258]
[1720018021070,0.21722978,60408.0,60407.0,0.37161258]
[1720018021273,0.21722978,60408.0,60407.0,0.40161258]
[1720018022278,0.1956,60408.0,60407.0,0.40161258]
[1720018022477,0.11708554,60408.0,60407.0,0.40161258]
[1720018022635,0.21708554,60408.0,60407.0,0.40161258]
[1720018022840,0.21708554,60408.0,60407.0,0.34161258]
[1720018023045,0.21708554,60408.0,60407.0,0.37161258]
[1720018023254,0.21708554,60408.0,60407.0,0.40161258]
[1720018023461,0.21708554,60408.0,60407.0,0.34161258]
[1720018023662,0.21708554,60408.0,60407.0,0.40161258]
[1720018025684,0.21704931,60408.0,60407.0,0.40161258]
[1720018026152,0.21704789,60408.0,60407.0,0.40161258]
[1720018030248,0.21639336,60408.0,60407.0,0.40161258]
[1720018031977,0.1956,60408.0,60407.0,0.40161258]
[1720018032179,0.11646294,60408.0,60407.0,0.40161258]
[1720018032387,0.21646294,60408.0,60407.0,0.40161258]
[1720018034384,0.21646294,60408.0,60407.0,0.01201378]
[1720018035468,0.21574936,60408.0,60407.0,0.01201378]
[1720018035667,0.21574936,60408.0,60407.0,0.23641378]
[1720018035868,0.21574936,60408.0,60407.0,0.39671258]
[1720018036108,0.02074936,60408.0,60407.0,0.69671258]
[1720018036295,0.0006,60408.0,60407.0,0.69671258]
[1720018036499,0.00083,60423.0,60422.0,0.23461378]
[1720018036795,0.09583,60423.0,60422.0,0.39491258]
[1720018040599,0.09583,60423.0,60422.0,0.36991258]
[1720018041794,0.09583,60423.0,60422.0,0.24341258]
[1720018042454,0.09583,60423.0,60422.0,0.25231258]
[1720018042671,0.09583,60423.0,60422.0,0.28231258]
[1720018042977,0.09583,60423.0,60422.0,0.18001258]
[1720018043119,0.10948303,60423.0,60422.0,0.02871378]
[1720018043301,0.20948303,60423.0,60422.0,0.02871378]
[1720018043683,0.20948303,60423.0,60422.0,0.01971378]
[1720018044581,0.20948303,60423.0,60422.0,0.01071378]
[1720018044995,0.19583,60423.0,60422.0,0.38431258]
[1720018045186,0.00083,60423.0,60422.0,0.38431258]
[1720018045347,0.00083,60423.0,60422.0,0.67231258]
[1720018045540,0.00083,60423.0,60422.0,0.37231258]
[1720018045746,0.00083,60423.0,60422.0,0.38141258]
[1720018046081,0.00083,60423.0,60422.0,0.68141258]
[1720018046261,0.00083,60423.0,60422.0,0.68151258]
[1720018046604,0.00093,60423.0,60422.0,0.38951258]
[1720018046797,0.00093,60423.0,60422.0,0.68151258]
[1720018047367,0.00093,60423.0,60422.0,0.69051258]
[1720018049751,0.00093,60423.0,60422.0,0.67251258]
[1720018050337,0.00093,60423.0,60422.0,0.68651258]
[1720018050911,0.00093,60423.0,60422.0,0.38651258]
[1720018051111,0.00093,60423.0,60422.0,0.70051258]
[1720018051905,0.00093,60423.0,60422.0,0.68651258]
[1720018052318,0.00093,60423.0,60422.0,0.70051258]
[1720018052899,0.00093,60423.0,60422.0,0.68651258]
[1720018053115,0.00093,60423.0,60422.0,0.67251258]
[1720018053553,0.00093,60423.0,60422.0,0.68651258]
[1720018054066,0.00093,60423.0,60422.0,0.67251258]
[1720018054213,0.00093,60423.0,60422.0,0.72351258]
[1720018054617,0.00093,60423.0,60422.0,0.70951258]
[1720018054816,0.00093,60423.0,60422.0,0.69551258]
[1720018055025,0.00093,60423.0,60422.0,0.70951258]
[1720018055260,0.00093,60423.0,60422.0,0.72351258]
[1720018055575,0.00093,60423.0,60422.0,1.02361258]
[1720018055724,0.00093,60423.0,60422.0,1.00961258]
[1720018055933,0.00093,60423.0,60422.0,1.02351258]
[1720018056936,0.00093,60423.0,60422.0,1.00951258]
[1720018057342,0.00093,60423.0,60422.0,1.02351258]
[1720018057740,0.00093,60423.0,60422.0,1.00951258]
[1720018058145,0.00093,60423.0,60422.0,1.02351258]
[1720018058520,0.00093,60423.0,60422.0,1.02341258]
[1720018059753,0.2373,60441.0,60440.0,0.00551378]
[1720018059754,0.00119415,60441.0,60440.0,0.00551378]
[1720018060945,0.00119415,60441.0,60440.0,0.00651378]
[1720018061171,0.04458362,60441.0,60440.0,0.00651378]
[1720018061374,0.00835,60446.0,60440.0,0.00651378]
[1720018061547,0.00855,60446.0,60445.0,0.00541378]
[1720018061752,0.25951015,60446.0,60445.0,0.00531378]
[1720018061949,0.35951015,60446.0,60445.0,0.00531378]
[1720018062358,0.0002,60444.0,60443.0,0.00531378]
[1720018062566,0.2375,60444.0,60443.0,0.00531378]
[1720018062776,0.3373,60444.0,60443.0,0.00531378]
[1720018062968,0.3375,60444.0,60441.0,0.00531378]
[1720018063176,0.1002,60443.0,60441.0,0.00531378]
[1720018063413,0.1,60443.0,60442.0,0.00531378]
[1720018063639,0.1136574,60443.0,60442.0,0.00531378]
[1720018064272,0.1136574,60443.0,60441.0,0.00096475]
[1720018064488,0.1136574,60443.0,60431.0,0.19465582]
[1720018064489,0.0136574,60442.0,60433.0,0.03]
[1720018064687,0.2373,60435.0,60433.0,0.1602988]
[1720018064891,0.1,60434.0,60433.0,0.1602988]
[1720018065300,0.3373,60434.0,60433.0,0.1902988]
[1720018065523,0.3373,60434.0,60433.0,0.1901988]
[1720018066379,0.3373,60434.0,60433.0,0.2001988]
[1720018067747,0.1,60434.0,60433.0,0.2001988]
[1720018067946,0.0949,60434.0,60433.0,0.2001988]
[1720018068521,0.0949,60434.0,60433.0,0.1701988]
[1720018068723,0.21156935,60434.0,60433.0,0.1701988]
[1720018068911,0.11666935,60434.0,60433.0,0.2000988]
[1720018069143,0.11666935,60434.0,60433.0,0.29115462]
[1720018069144,0.1,60434.0,60433.0,0.29115462]
[1720018069254,0.1949,60434.0,60433.0,0.29115462]
[1720018069889,0.0949,60434.0,60433.0,0.29115462]
[1720018070093,0.1949,60434.0,60433.0,0.29115462]
[1720018070702,0.1949,60434.0,60433.0,0.26115462]
[1720018071185,0.0949,60434.0,60433.0,0.26115462]
[1720018071982,0.0949,60434.0,60433.0,0.29115462]
[1720018073316,0.11198104,60434.0,60433.0,0.29115462]
[1720018073516,0.21198104,60434.0,60433.0,0.29115462]
[1720018074522,0.21198076,60434.0,60433.0,0.29115462]
[1720018074722,0.11708076,60434.0,60433.0,0.29115462]
[1720018074926,0.0949,60440.0,60435.0,0.03]
[1720018075222,0.0949,60438.0,60437.0,0.03]
[1720018075451,0.21175538,60438.0,60437.0,0.1602988]
[1720018075607,0.21175538,60438.0,60437.0,0.1901988]
[1720018075805,0.21175538,60438.0,60437.0,0.1601988]
[1720018076049,0.21175538,60438.0,60437.0,0.1600988]
[1720018076625,0.21175538,60438.0,60437.0,0.1599988]
[1720018076907,0.21175538,60438.0,60437.0,0.1899988]
[1720018077746,0.1949,60438.0,60433.0,0.0002]
[1720018077951,0.095,60434.0,60433.0,0.0002]
[1720018078364,0.11255676,60434.0,60433.0,0.0002]
[1720018078578,0.21255676,60434.0,60433.0,0.0302]
[1720018078781,0.21255676,60434.0,60433.0,0.1975]
[1720018079405,0.1001,60434.0,60433.0,0.4975]
[1720018079547,0.0001,60434.0,60433.0,0.4975]
[1720018080054,0.0001,60434.0,60433.0,0.4976]
[1720018080247,0.0002,60434.0,60433.0,0.5026]
[1720018080453,0.0002,60434.0,60433.0,0.4976]
[1720018080672,0.0003,60434.0,60433.0,0.1976]
[1720018080948,0.0003,60434.0,60433.0,0.2066]
[1720018081148,0.0952,60434.0,60433.0,0.2029]
[1720018081301,0.0952,60434.0,60433.0,0.2119]
[1720018083734,0.11200508,60434.0,60433.0,0.2119]
[1720018083938,0.21200508,60434.0,60433.0,0.2119]
[1720018084162,0.21200508,60434.0,60433.0,0.5119]
[1720018084346,0.11710508,60434.0,60433.0,0.5119]
[1720018084533,0.1003,60434.0,60433.0,0.2119]
[1720018084742,0.11713087,60434.0,60433.0,0.2119]
[1720018085062,0.01713087,60434.0,60433.0,0.2119]
[1720018086027,0.0003,60434.0,60433.0,0.2119]
[1720018086957,0.01397283,60434.0,60433.0,0.212]
[1720018087327,0.01397283,60434.0,60433.0,0.203]
[1720018087526,0.01397283,60434.0,60433.0,0.204]
[1720018087956,0.01397283,60434.0,60433.0,0.213]
[1720018088367,0.01397283,60434.0,60433.0,0.204]
[1720018088574,0.01397283,60434.0,60433.0,0.3752988]
[1720018089599,0.01397283,60434.0,60433.0,0.75545462]
[1720018090012,0.01397491,60434.0,60433.0,0.75545462]
[1720018090213,0.0003,60434.0,60433.0,0.75545462]
[1720018092699,0.0003,60434.0,60433.0,1.17335462]
[1720018093232,0.0003,60434.0,60433.0,1.22303921]
[1720018093426,0.0003,60434.0,60433.0,1.17335462]
[1720018094164,0.0003,60434.0,60433.0,1.16335462]
[1720018094547,0.0003,60434.0,60433.0,1.17735462]
[1720018095354,0.00835,60446.0,60445.0,0.03]
[1720018095539,0.00835,60446.0,60445.0,0.3581988]
[1720018097189,0.00835,60446.0,60445.0,0.6581988]
[1720018097780,0.00835,60446.0,60445.0,0.6641988]
[1720018098602,0.00835,60446.0,60445.0,0.6710988]
[1720018098778,0.00835,60446.0,60445.0,0.6709988]
[1720018098999,0.00835,60446.0,60445.0,0.6579988]
[1720018099419,0.00835,60446.0,60445.0,0.6659988]
[1720018100532,0.00835,60446.0,60445.0,0.6739988]
[1720018101293,0.00835,60446.0,60445.0,1.2343378]
[1720018101518,0.00835,60446.0,60445.0,1.2573378]
[1720018101941,0.00835,60446.0,60445.0,1.0918988]
[1720018102548,0.00835,60446.0,60445.0,1.2573378]
[1720018102967,0.00835,60448.0,60447.0,0.795234]
[1720018103308,0.00835,60448.0,60447.0,1.5752008]
[1720018103639,0.00835,60448.0,60447.0,1.7752008]
[1720018103839,0.00835,60448.0,60447.0,1.4443328]
[1720018104828,0.00835,60448.0,60447.0,1.2788988]
[1720018105034,0.00835,60448.0,60447.0,1.4493328]
[1720018105262,0.00835,60448.0,60447.0,1.2838988]
[1720018105465,0.00835,60448.0,60447.0,1.2887988]
[1720018105676,0.00835,60448.0,60447.0,1.2886988]
[1720018105867,0.00835,60448.0,60447.0,1.1937988]
[1720018106675,0.00835,60448.0,60447.0,1.1936988]
[1720018106999,0.00835,60448.0,60447.0,1.1935988]
[1720018108187,0.10325,60448.0,60447.0,0.3939988]
[1720018108333,0.10325,60448.0,60447.0,0.1702988]
[1720018108510,0.10325,60448.0,60447.0,0.19801948]
[1720018108715,0.10325,60448.0,60447.0,0.1702988]
[1720018109179,0.10325,60448.0,60447.0,0.19801948]
[1720018109319,0.10325,60448.0,60447.0,0.1702988]
[1720018109724,0.00835,60448.0,60447.0,0.1702988]
[1720018109924,0.00835,60448.0,60447.0,0.19801948]
[1720018110170,0.00835,60448.0,60447.0,0.1702988]
[1720018110372,0.00835,60448.0,60447.0,0.19801948]
[1720018110603,0.00835,60448.0,60447.0,0.19791948]
[1720018113292,0.00835,60448.0,60447.0,0.2778753]
[1720018113618,0.00835,60448.0,60447.0,0.3736753]
[1720018114600,0.00835,60448.0,60447.0,0.7423753]
[1720018115804,0.00835,60448.0,60447.0,0.7422753]
[1720018116407,0.00835,60448.0,60447.0,0.7421753]
[1720018117705,0.00835,60448.0,60447.0,0.4425753]
[1720018118365,0.00835,60448.0,60447.0,0.19751948]
[1720018119919,0.00835,60448.0,60447.0,0.1697988]
[1720018120768,0.00845,60448.0,60447.0,0.1697988]
[1720018120967,0.00845,60448.0,60447.0,0.1696988]
[1720018123017,0.01185,60448.0,60447.0,0.1696988]
[1720018123642,0.01185,60448.0,60447.0,0.1646988]
[1720018124075,0.01185,60448.0,60447.0,0.1636988]
[1720018124294,0.01185,60448.0,60447.0,0.1676988]
[1720018124707,0.01185,60448.0,60445.0,0.001313]
[1720018124926,0.24347932,60446.0,60445.0,0.001313]
[1720018125111,0.24347932,60446.0,60433.0,0.08035582]
[1720018125112,0.24007932,60446.0,60433.0,0.08035582]
[1720018125477,0.0034,60440.0,60435.0,0.1602988]
[1720018125827,0.2372,60436.0,60435.0,0.1602988]
[1720018126008,0.3372,60436.0,60435.0,0.1602988]
[1720018127435,0.1,60436.0,60435.0,0.1602988]
[1720018127640,0.0034,60440.0,60435.0,0.1702988]
[1720018128863,0.0034,60440.0,60435.0,0.1602988]
[1720018129855,0.0034,60440.0,60435.0,0.1652988]
[1720018130280,0.0034,60440.0,60435.0,0.1702988]
[1720018130895,0.0038,60440.0,60435.0,0.1702988]
[1720018131096,0.2372,60437.0,60435.0,0.1702988]
[1720018131259,0.1,60436.0,60435.0,0.1702988]
[1720018133146,0.10287932,60436.0,60435.0,0.005]
[1720018133396,0.10627932,60436.0,60435.0,0.005]
[1720018133587,0.10627932,60436.0,60435.0,0.014]
[1720018133790,0.10627932,60436.0,60433.0,0.0002]
[1720018134094,0.0004,60435.0,60433.0,0.1604988]
[1720018134464,0.0004,60434.0,60433.0,0.1604988]
[1720018134658,0.0003,60434.0,60433.0,0.1604988]
[1720018134863,0.0002,60434.0,60433.0,0.1604988]
[1720018135107,0.1034,60436.0,60435.0,0.0001]
[1720018135309,0.10607932,60436.0,60435.0,0.0001]
[1720018135544,0.10597932,60436.0,60435.0,0.0001]
[1720018135764,0.1033,60436.0,60435.0,0.0001]
[1720018137471,0.1033,60436.0,60435.0,0.0101]
[1720018137814,0.10597932,60436.0,60435.0,0.0101]
[1720018138534,0.10597932,60436.0,60435.0,0.0102]
[1720018139127,0.01860574,60437.0,60435.0,0.0202]
[1720018139365,0.2372,60436.0,60435.0,0.0202]
[1720018140625,0.2372,60436.0,60435.0,0.0102]
[1720018141465,0.3372,60436.0,60435.0,0.0102]
[1720018143079,0.3372,60436.0,60435.0,0.0192]
[1720018143456,0.3372,60436.0,60435.0,0.00919176]
[1720018143655,0.3372,60436.0,60435.0,0.00019176]
[1720018143851,0.3372,60436.0,60435.0,0.01019176]
[1720018147990,0.1949,60436.0,60435.0,0.01019176]
[1720018148293,0.0949,60436.0,60435.0,0.01019176]
[1720018150755,0.095,60436.0,60435.0,0.01019176]
[1720018153081,0.13976834,60436.0,60435.0,0.01019176]
[1720018153288,0.23976834,60436.0,60435.0,0.01019176]
[1720018153711,0.23976834,60436.0,60435.0,0.01029176]
[1720018154549,0.23986834,60436.0,60435.0,0.01029176]
[1720018154764,0.23986834,60436.0,60435.0,7.6e-07]
[1720018154937,0.14496834,60436.0,60435.0,7.6e-07]
[1720018155298,0.13986834,60436.0,60435.0,7.6e-07]
[1720018155512,0.23986834,60436.0,60435.0,7.6e-07]
[1720018156249,0.23986834,60436.0,60435.0,0.00400076]
[1720018157513,0.23996834,60436.0,60435.0,0.00400076]
[1720018157887,0.24006834,60436.0,60435.0,0.00400076]
[1720018158584,0.24016834,60436.0,60435.0,0.00400076]
[1720018158791,0.24016834,60436.0,60435.0,7.6e-07]
[1720018159009,0.24016834,60436.0,60435.0,0.16029956]
[1720018159212,0.24016834,60436.0,60435.0,0.22029956]
[1720018159409,0.24016834,60436.0,60435.0,0.31009956]
[1720018159631,0.24016834,60436.0,60435.0,0.25009956]
[1720018160301,0.24316834,60436.0,60435.0,0.25009956]
[1720018161319,0.24516834,60436.0,60435.0,0.25009956]
[1720018161769,0.24526834,60436.0,60435.0,0.25009956]
[1720018161999,0.24326834,60436.0,60435.0,0.25009956]
[1720018162202,0.24326834,60436.0,60435.0,7.6e-07]
[1720018162407,0.24326834,60436.0,60435.0,0.00200076]
[1720018164489,0.24026834,60436.0,60435.0,0.00200076]
[1720018164860,0.24026834,60436.0,60435.0,0.00400076]
[1720018165067,0.24026834,60436.0,60435.0,0.00410076]
[1720018165540,0.24026834,60436.0,60435.0,0.38469956]
[1720018165744,0.1006,60436.0,60435.0,0.38469956]
[1720018165948,0.0026,60436.0,60435.0,0.38469956]
[1720018166164,0.1026,60436.0,60435.0,0.38469956]
[1720018166686,0.1026,60436.0,60435.0,0.38269956]
[1720018167116,0.0026,60436.0,60435.0,0.38269956]
[1720018168134,0.0006,60436.0,60435.0,0.38269956]
[1720018168674,0.0026,60436.0,60435.0,0.68469956]
[1720018168840,0.0006,60436.0,60435.0,0.68469956]
[1720018169041,0.0006,60436.0,60435.0,0.76485538]
[1720018169240,0.0006,60436.0,60435.0,0.76685538]
[1720018169704,0.0006,60436.0,60435.0,0.76485538]
[1720018169841,0.0016,60436.0,60435.0,0.77285538]
[1720018170951,0.0016,60436.0,60435.0,0.39269956]
[1720018172170,0.0026,60436.0,60435.0,0.40269956]
[1720018173984,0.0026,60436.0,60435.0,0.70269956]
[1720018176809,0.0026,60436.0,60435.0,0.70361256]
[1720018177394,0.00243,60436.0,60435.0,0.69361256]
[1720018177974,0.00243,60436.0,60435.0,0.70761256]
[1720018178176,0.00143,60436.0,60435.0,0.69761256]
[1720018183456,0.00143,60436.0,60435.0,1.02061256]
[1720018186188,0.00143,60436.0,60435.0,1.03461256]
[1720018196088,0.00143,60436.0,60435.0,1.00986256]
[1720018198525,0.00143,60436.0,60435.0,1.00996256]
[1720018198739,0.00143,60436.0,60435.0,1.17542956]
[1720018199346,0.00143,60436.0,60435.0,1.83729756]
[1720018199501,0.00143,60436.0,60435.0,1.83739756]
[1720018199757,0.00143,60436.0,60435.0,2.08698281]
[1720018200582,0.00143,60436.0,60435.0,1.83739756]
[1720018200926,0.00143,60436.0,60435.0,2.03739756]
[1720018201853,0.00143,60436.0,60435.0,2.11177544]
[1720018202285,0.00143,60436.0,60435.0,2.11178051]
[1720018202949,0.00143,60436.0,60435.0,2.20668051]
[1720018203483,0.00143,60436.0,60435.0,2.13229756]
[1720018203683,0.00143,60436.0,60435.0,2.03739756]
[1720018203881,0.00143,60436.0,60435.0,1.80136356]
[1720018204081,0.00143,60436.0,60435.0,1.87574925]
[1720018204487,0.00143,60436.0,60435.0,1.80136356]
[1720018205320,0.00143,60436.0,60435.0,1.87575613]
[1720018205504,0.00143,60436.0,60435.0,1.87575616]
[1720018205919,0.00143,60436.0,60435.0,1.87576104]
[1720018206637,0.00143,60436.0,60435.0,1.80136356]